bitfinex/quotes_BTCUSD_20260315
["timestamp","ask_amount","ask_price","bid_price","bid_amount"]
[1773602679482,0.07014951,71501.0,71491.0,0.07153887]
[1773602681174,0.12109588,71501.0,71491.0,0.07153887]
[1773602688838,0.07014951,71501.0,71491.0,0.07153887]
[1773602698967,0.07014951,71501.0,71492.0,0.04910401]
[1773602699161,0.00057709,71504.0,71492.0,0.04910401]
[1773602699585,0.00022001,71507.0,71492.0,0.04910401]
[1773602699780,0.00032704,71506.0,71492.0,0.04910401]
[1773602700922,0.07025154,71506.0,71492.0,0.04910401]
[1773602701124,0.07025154,71506.0,71493.0,0.06993691]
[1773602701895,0.07025154,71506.0,71494.0,0.0014]
[1773602702944,0.07025154,71506.0,71496.0,0.06993398]
[1773602703925,0.07025154,71506.0,71497.0,0.0014]
[1773602704133,0.07025154,71506.0,71498.0,0.0014]
[1773602704338,0.07025154,71506.0,71496.0,0.06993398]
[1773602704533,0.07025154,71506.0,71497.0,0.0014]
[1773602705697,0.07025154,71506.0,71498.0,1e-08]
[1773602707419,0.07025154,71506.0,71494.0,0.06993522]
[1773602707628,0.07025154,71506.0,71495.0,0.07133496]
[1773602708441,0.07025154,71506.0,71496.0,0.0014]
[1773602708643,0.07025154,71506.0,71497.0,1e-08]
[1773602708854,0.07025154,71506.0,71495.0,0.06993496]
[1773602709090,0.07025154,71506.0,71496.0,0.0014]
[1773602709291,0.07025154,71506.0,71497.0,0.0014]
[1773602709492,0.07025154,71506.0,71498.0,0.06993202]
[1773602709929,0.07025154,71506.0,71492.0,0.06993789]
[1773602710131,0.07025154,71506.0,71493.0,0.0014]
[1773602712599,0.07025154,71506.0,71494.0,0.0014]
[1773602713025,0.07025154,71506.0,71492.0,0.06993789]
[1773602713262,0.07025154,71506.0,71495.0,0.0014]
[1773602713636,0.07025154,71506.0,71496.0,0.0014]
[1773602714005,0.07025154,71506.0,71492.0,0.06993789]
[1773602714208,0.07025154,71506.0,71493.0,0.0014]
[1773602714612,0.07025154,71506.0,71494.0,0.0014]
[1773602715137,0.07025154,71506.0,71495.0,0.0014]
[1773602715333,0.04950075,71505.0,71491.0,0.0014]
[1773602716110,0.04915157,71505.0,71491.0,0.0014]
[1773602716366,0.0014,71504.0,71490.0,0.06993972]
[1773602716510,0.04950075,71503.0,71491.0,0.0014]
[1773602716715,0.04950075,71501.0,71490.0,0.06993972]
[1773602717116,0.04950075,71501.0,71491.0,0.0014]
[1773602717565,0.04950075,71501.0,71490.0,0.06993972]
[1773602717762,0.04950075,71501.0,71491.0,0.0014]
[1773602717931,0.04950075,71501.0,71491.0,0.0016]
[1773602718543,0.04950075,71501.0,71491.0,0.0002]
[1773602718743,0.04950075,71501.0,71491.0,0.0016]
[1773602718966,0.06993006,71500.0,71492.0,0.06993789]
[1773602720287,0.06993006,71500.0,71492.0,0.07133789]
[1773602724192,0.06992811,71502.0,71492.0,0.07153789]
[1773602726298,0.12222733,71502.0,71492.0,0.0016]
[1773602726678,0.06992811,71502.0,71492.0,0.0016]
[1773602726978,0.12222733,71502.0,71492.0,0.0016]
[1773602727180,0.12222733,71502.0,71492.0,0.07153789]
[1773602727420,0.12222733,71502.0,71492.0,0.07013789]
[1773602727647,0.12222733,71502.0,71492.0,0.07153789]
[1773602729468,0.06992811,71502.0,71492.0,0.07153789]
[1773602733530,0.06992713,71503.0,71493.0,0.05450012]
[1773602733735,0.06993006,71502.0,71493.0,0.05450012]
[1773602736477,0.06993006,71502.0,71492.0,0.07153789]
[1773602739589,0.06992713,71503.0,71492.0,0.0016]
[1773602749068,0.07014714,71503.0,71492.0,0.0016]
[1773602757497,0.07014714,71503.0,71492.0,0.07153783]
[1773602761437,0.03310664,71503.0,71492.0,0.07153783]
[1773602761653,0.04809716,71503.0,71493.0,0.05186461]
[1773602761876,0.06992713,71504.0,71493.0,0.05186461]
[1773602762066,0.06992811,71503.0,71493.0,0.05186461]
[1773602763382,0.06992811,71503.0,71494.0,0.06993593]
[1773602763612,0.06992811,71503.0,71494.0,0.12180054]
[1773602764568,0.06992811,71503.0,71494.0,0.06993593]
[1773602764720,0.00032704,71506.0,71495.0,0.05186461]
[1773602765752,0.00032704,71506.0,71496.0,0.06993398]
[1773602766148,0.00032704,71506.0,71496.0,0.12179859]
[1773602767415,0.00032704,71506.0,71497.0,0.05186461]
[1773602767594,0.00032704,71506.0,71498.0,0.0014]
[1773602767795,0.00032704,71506.0,71499.0,0.06993104]
[1773602768621,0.07024756,71513.0,71500.0,0.05186461]
[1773602768921,0.04779009,71513.0,71500.0,0.05186461]
[1773602769555,0.04779009,71513.0,71500.0,0.11053685]
[1773602769917,0.07013684,71514.0,71501.0,0.06992909]
[1773602770437,0.00022001,71506.0,71501.0,0.06992909]
[1773602770714,0.00022001,71506.0,71502.0,1e-08]
[1773602770945,0.00022001,71506.0,71501.0,0.06992909]
[1773602771362,0.00022001,71506.0,71500.0,0.06992909]
[1773602771684,0.00022001,71506.0,71501.0,0.0014]
[1773602771894,0.00022001,71506.0,71502.0,1e-08]
[1773602773259,0.07014439,71506.0,71502.0,1e-08]
[1773602773436,0.12573407,71506.0,71502.0,1e-08]
[1773602773957,0.12573407,71506.0,71503.0,1e-08]
[1773602774157,0.07014439,71506.0,71503.0,1e-08]
[1773602774367,0.07014439,71506.0,71494.0,0.06993514]
[1773602774568,0.00022001,71506.0,71495.0,0.0014]
[1773602775298,0.07014433,71506.0,71496.0,0.0014]
[1773602775684,0.07014433,71506.0,71494.0,0.06993514]
[1773602775992,0.07014433,71506.0,71495.0,0.0014]
[1773602776192,0.07014433,71506.0,71494.0,0.06993514]
[1773602776495,0.07014433,71506.0,71495.0,0.0014]
[1773602776701,0.07014433,71506.0,71494.0,0.06993514]
[1773602776940,0.07014433,71506.0,71496.0,0.0014]
[1773602777138,0.07014433,71506.0,71494.0,0.06993514]
[1773602777412,0.07014433,71506.0,71497.0,0.0014]
[1773602777766,0.07014433,71506.0,71494.0,0.06993514]
[1773602777767,0.07014433,71506.0,71498.0,0.0014]
[1773602778126,0.07014433,71506.0,71494.0,0.06993514]
[1773602778380,0.07014433,71506.0,71499.0,0.07133042]
[1773602779245,0.00022001,71506.0,71499.0,0.07133042]
[1773602780320,0.07014425,71506.0,71499.0,0.07133042]
[1773602780807,0.00022001,71506.0,71499.0,0.07133042]
[1773602782775,0.06992162,71509.0,71499.0,0.07133042]
[1773602784204,0.00022001,71506.0,71499.0,0.07133042]
[1773602788079,0.00022001,71506.0,71499.0,0.07233042]
[1773602788897,0.00028482,71506.0,71499.0,0.07233042]
[1773602790870,0.00028482,71506.0,71499.0,0.07133042]
[1773602791449,0.00028482,71506.0,71496.0,0.05887224]
[1773602791450,0.05375565,71505.0,71496.0,0.0002]
[1773602791670,0.05375565,71505.0,71497.0,0.0014]
[1773602792066,0.05305565,71503.0,71497.0,0.0014]
[1773602792706,0.07020948,71506.0,71497.0,0.0713324]
[1773602793276,0.12326513,71506.0,71497.0,0.0713324]
[1773602797433,0.07020948,71506.0,71497.0,0.0014]
[1773602797593,0.05303752,71505.0,71497.0,0.0014]
[1773602797995,0.05303752,71505.0,71498.0,0.0014]
[1773602799420,0.12296366,71505.0,71498.0,0.0014]
[1773602805473,0.1219621,71505.0,71498.0,0.0014]
[1773602805679,0.05203596,71505.0,71498.0,0.0014]
[1773602805864,0.12196128,71505.0,71497.0,0.06993213]
[1773602806048,0.12196128,71505.0,71499.0,0.0014]
[1773602809121,0.05203596,71505.0,71499.0,0.0014]
[1773602809260,0.07020948,71506.0,71499.0,0.0014]
[1773602810033,0.07020948,71506.0,71499.0,0.07133104]
[1773602810720,0.00022001,71505.0,71499.0,0.07133104]
[1773602811120,0.07020948,71506.0,71499.0,0.07133104]
[1773602811329,0.00022001,71514.0,71499.0,0.07133104]
[1773602811489,0.07018778,71513.0,71500.0,0.05865983]
[1773602813320,0.000129,71518.0,71501.0,0.06992909]
[1773602813461,0.000129,71518.0,71506.0,0.05865983]
[1773602813666,0.000129,71518.0,71507.0,0.0014]
[1773602815347,0.000129,71518.0,71508.0,0.06992224]
[1773602816667,0.000129,71518.0,71508.0,0.12858207]
[1773602818344,0.00034901,71518.0,71508.0,0.12858207]
[1773602822236,0.00019851,71518.0,71508.0,0.12858207]
[1773602823803,0.0509334,71517.0,71508.0,0.06992224]
[1773602824006,0.16176704,71517.0,71506.0,0.0699242]
[1773602824351,0.0509334,71514.0,71507.0,0.0014]
[1773602824497,0.0509334,71514.0,71501.0,0.06997894]
[1773602824723,0.0509334,71514.0,71508.0,0.001]
[1773602824873,0.0509334,71514.0,71509.0,0.0014]
[1773602825075,0.0509334,71514.0,71510.0,0.0014]
[1773602825315,0.0509334,71514.0,71501.0,0.06997894]
[1773602825510,0.0509334,71514.0,71502.0,0.0014]
[1773602825916,0.0509334,71514.0,71503.0,0.0014]
[1773602826302,0.06991714,71514.0,71501.0,0.06997894]
[1773602826672,0.0509334,71513.0,71502.0,0.0014]
[1773602826876,0.0509334,71513.0,71501.0,0.06997894]
[1773602827080,0.0509334,71513.0,71503.0,0.0014]
[1773602827509,0.0509334,71513.0,71504.0,0.0014]
[1773602827933,0.0509334,71513.0,71501.0,0.06997894]
[1773602828288,0.0509334,71513.0,71502.0,0.0014]
[1773602828490,0.0509334,71512.0,71503.0,0.06992713]
[1773602831476,0.05115341,71512.0,71503.0,0.06992713]
[1773602837073,0.00022001,71512.0,71503.0,0.06992713]
[1773602839331,0.00022001,71512.0,71503.0,0.07012713]
[1773602840127,0.07013886,71512.0,71503.0,0.07012713]
[1773602842248,0.00022001,71512.0,71503.0,0.07012713]
[1773602845447,0.07013837,71512.0,71503.0,0.07012713]
[1773602849566,0.07013837,71512.0,71504.0,0.0014]
[1773602849968,0.00022001,71512.0,71504.0,0.0014]
[1773602852256,0.00022001,71512.0,71505.0,0.06992518]
[1773602852500,0.07013841,71512.0,71505.0,0.06992518]
[1773602854573,0.00022001,71512.0,71505.0,0.06992518]
[1773602859183,0.00022001,71512.0,71505.0,0.1147992]
[1773602861086,0.00022001,71512.0,71505.0,0.06992518]
[1773602865430,0.00022001,71512.0,71505.0,0.1147992]
[1773602866994,0.00022001,71512.0,71505.0,0.06992518]
[1773602869274,0.00022001,71512.0,71505.0,0.1147992]
[1773602871813,0.00022001,71512.0,71506.0,0.0014]
[1773602872796,0.00022001,71512.0,71507.0,0.11675749]
[1773602872998,0.06991779,71513.0,71507.0,0.06992322]
[1773602873612,0.01921917,71513.0,71507.0,0.06992322]
[1773602874221,0.00022001,71512.0,71507.0,0.06992322]
[1773602874431,0.07013862,71512.0,71506.0,0.11815844]
[1773602875715,0.07013862,71512.0,71506.0,0.07132417]
[1773602880206,0.07013862,71512.0,71507.0,0.0014]
[1773602881851,0.00022001,71512.0,71507.0,0.07132319]
[1773602882640,0.07013856,71512.0,71507.0,0.07132319]
[1773602883080,0.00019851,71518.0,71507.0,0.07132319]
[1773602883292,0.00019851,71518.0,71508.0,0.05863819]
[1773602884114,0.00019851,71518.0,71509.0,0.06992126]
[1773602884536,0.11056107,71540.0,71509.0,0.06992126]
[1773602884757,0.00047852,71525.0,71515.0,0.05863819]
[1773602884976,0.00047852,71525.0,71516.0,0.0014]
[1773602885700,0.07038449,71525.0,71516.0,0.0014]
[1773602886141,0.07038449,71525.0,71517.0,0.06991344]
[1773602886364,0.07038449,71525.0,71517.0,0.04786335]
[1773602888756,0.0706045,71525.0,71517.0,0.04786335]
[1773602891967,0.0706045,71525.0,71517.0,0.0477151]
[1773602895606,0.0706045,71525.0,71518.0,0.0014]
[1773602898476,0.0706045,71525.0,71518.0,0.07116405]
[1773602898679,0.07060436,71525.0,71518.0,0.07116405]
[1773602901523,0.00069853,71525.0,71518.0,0.07116405]
[1773602902995,0.00069853,71525.0,71518.0,0.07136405]
[1773602905913,0.07002838,71532.0,71518.0,0.07136405]
[1773602905914,0.000129,71532.0,71518.0,0.07136405]
[1773602906121,0.0001,71535.0,71521.0,0.0434541]
[1773602906319,0.0001,71535.0,71518.0,0.07136405]
[1773602906320,0.0001,71535.0,71526.0,0.0434541]
[1773602906522,0.00149058,71536.0,71527.0,0.0014]
[1773602906722,0.00149058,71536.0,71527.0,0.0448541]
[1773602907443,0.07023803,71543.0,71527.0,0.0448541]
[1773602907622,0.07023803,71543.0,71530.0,0.04239825]
[1773602907824,0.07023803,71543.0,71531.0,0.06989976]
[1773602908854,0.04629011,71542.0,71531.0,0.06989976]
[1773602909029,0.07023803,71543.0,71531.0,0.06989976]
[1773602910581,0.07045804,71543.0,71531.0,0.06989976]
[1773602911804,0.00056945,71543.0,71531.0,0.06989976]
[1773602912142,0.04629011,71541.0,71531.0,0.0014]
[1773602912982,0.06989079,71541.0,71531.0,0.07129976]
[1773602917190,0.0701108,71541.0,71531.0,0.07129976]
[1773602917400,0.0701108,71541.0,71530.0,0.12853795]
[1773602917401,0.0701108,71541.0,71530.0,0.06990074]
[1773602917578,0.11640091,71541.0,71531.0,0.0014]
[1773602917951,0.11640091,71541.0,71532.0,0.0014]
[1773602918293,0.11640091,71541.0,71530.0,0.06990074]
[1773602918492,0.11640091,71541.0,71533.0,0.0014]
[1773602919288,0.0701108,71541.0,71533.0,0.07129709]
[1773602921818,0.00022001,71541.0,71533.0,0.07129709]
[1773602923646,0.07044853,71543.0,71533.0,0.07129709]
[1773602925627,0.00022001,71541.0,71533.0,0.07129709]
[1773602927688,0.07011091,71541.0,71533.0,0.07129709]
[1773602927886,0.07011091,71541.0,71534.0,0.0014]
[1773602928240,0.07011091,71541.0,71533.0,0.06989709]
[1773602928427,0.07011091,71541.0,71534.0,0.0014]
[1773602928857,0.07011091,71541.0,71535.0,0.0014]
[1773602929267,0.07011091,71541.0,71533.0,0.06989709]
[1773602929473,0.07011091,71541.0,71534.0,0.0014]
[1773602929800,0.07011091,71541.0,71533.0,0.06989709]
[1773602929976,0.07011091,71541.0,71535.0,0.0014]
[1773602930400,0.07011091,71541.0,71533.0,0.06989709]
[1773602930580,0.07011091,71541.0,71536.0,0.0014]
[1773602930951,0.07011091,71541.0,71537.0,0.0014]
[1773602933266,0.00022001,71541.0,71537.0,0.0014]
[1773602936492,0.07011009,71541.0,71532.0,0.06989874]
[1773602936641,0.07011009,71541.0,71538.0,0.0014]
[1773602937076,0.00022001,71541.0,71538.0,0.0014]
[1773602937866,0.00056049,71543.0,71538.0,0.0014]
[1773602938122,0.06988995,71542.0,71538.0,0.0014]
[1773602941192,0.06988995,71542.0,71539.0,0.0014]
[1773602941385,0.07044853,71543.0,71539.0,0.0014]
[1773602941943,0.00022001,71542.0,71539.0,0.0014]
[1773602952978,0.0701093,71542.0,71539.0,0.0014]
[1773602953830,0.0701093,71542.0,71535.0,0.06989559]
[1773602954036,0.0701093,71542.0,71539.0,0.0014]
[1773602954783,0.0701093,71542.0,71535.0,0.06989559]
[1773602954985,0.0701093,71542.0,71539.0,0.0014]
[1773602955310,0.0701093,71542.0,71534.0,0.0002]
[1773602955496,0.11445301,71542.0,71535.0,0.0014]
[1773602955698,0.11445301,71542.0,71536.0,0.0014]
[1773602955904,0.0701093,71542.0,71536.0,0.0014]
[1773602957598,0.0701093,71542.0,71532.0,0.06989826]
[1773602957922,0.0701093,71542.0,71533.0,0.0014]
[1773602958421,0.0701093,71542.0,71534.0,0.0014]
[1773602958819,0.0701093,71542.0,71532.0,0.06989826]
[1773602958996,0.0701093,71542.0,71535.0,0.0014]
[1773602961021,0.0701093,71542.0,71536.0,0.0014]
[1773602961433,0.0701093,71542.0,71533.0,0.0698972]
[1773602961739,0.0701093,71542.0,71534.0,0.0014]
[1773602961943,0.0701093,71542.0,71533.0,0.0698972]
[1773602962135,0.0701093,71542.0,71534.0,0.0014]
[1773602962486,0.0701093,71542.0,71533.0,0.0698972]
[1773602962611,0.0701093,71542.0,71535.0,0.0014]
[1773602963365,0.0701093,71542.0,71536.0,0.0014]
[1773602963769,0.0701093,71542.0,71537.0,0.0014]
[1773602964961,0.0701093,71542.0,71532.0,0.06989819]
[1773602965167,0.0701093,71542.0,71537.0,0.0014]
[1773602965819,0.04425407,71541.0,71532.0,0.0014]
[1773602966398,0.04425407,71541.0,71526.0,0.0014]
[1773602966544,0.04425407,71539.0,71521.0,0.000129]
[1773602966712,0.04425407,71537.0,71521.0,0.000129]
[1773602966916,0.04425407,71537.0,71522.0,0.0014]
[1773602967321,0.04425407,71537.0,71523.0,0.0014]
[1773602967883,0.04425407,71537.0,71521.0,0.0014]
[1773602968410,0.04425407,71537.0,71518.0,0.0002]
[1773602968610,0.04425407,71535.0,71521.0,0.0014]
[1773602968961,0.04425407,71535.0,71517.0,0.0014]
[1773602969340,0.04425407,71535.0,71516.0,0.07011422]
[1773602969547,0.04425407,71535.0,71517.0,0.0014]
[1773602969902,0.04425407,71535.0,71518.0,0.0014]
[1773602970272,0.04425407,71535.0,71516.0,0.07011422]
[1773602970442,0.04425407,71535.0,71519.0,0.0014]
[1773602970643,0.04425407,71533.0,71519.0,0.0014]
[1773602970847,0.04425407,71531.0,71519.0,0.0014]
[1773602971582,0.04425407,71531.0,71516.0,0.07011389]
[1773602971943,0.04425407,71531.0,71517.0,0.0014]
[1773602973092,0.06990074,71530.0,71517.0,0.06991317]
[1773602973356,0.06990074,71530.0,71518.0,0.0014]
[1773602973653,0.06990074,71530.0,71516.0,0.07011433]
[1773602973982,0.11415481,71530.0,71519.0,0.0014]
[1773602974187,0.11415481,71530.0,71516.0,0.07011433]
[1773602974342,0.06990074,71530.0,71520.0,0.0014]
[1773602974518,0.04425407,71529.0,71520.0,0.0014]
[1773602975111,0.06990269,71528.0,71520.0,0.0014]
[1773602975335,0.06990269,71528.0,71517.0,0.06991335]
[1773602975572,0.04425407,71527.0,71514.0,0.000129]
[1773602976477,0.04425407,71527.0,71511.0,0.0014]
[1773602976682,0.04425407,71527.0,71512.0,0.0014]
[1773602976880,0.06990269,71528.0,71510.0,0.0014]
[1773602976881,0.04425407,71525.0,71510.0,0.0014]
[1773602978732,0.0699066,71524.0,71510.0,0.0014]
[1773602978942,0.04425407,71523.0,71510.0,0.0014]
[1773602980037,0.04425407,71523.0,71510.0,0.0016]
[1773602980543,0.04425407,71523.0,71510.0,0.0002]
[1773602980790,0.04425407,71523.0,71511.0,0.0014]
[1773602980962,0.04425407,71521.0,71511.0,0.0014]
[1773602987523,0.06991051,71520.0,71511.0,0.0016]
[1773602987740,0.06991051,71520.0,71511.0,0.07151882]
[1773602988851,0.06991051,71520.0,71511.0,0.0016]
[1773602989772,0.06991051,71521.0,71511.0,0.0016]
[1773602994503,0.07013052,71521.0,71511.0,0.0016]
[1773603001689,0.10248594,71519.0,71510.0,0.0014]
[1773603001887,0.04141029,71518.0,71503.0,0.0002]
[1773603002201,0.04141029,71518.0,71504.0,0.0014]
[1773603002401,0.04141029,71516.0,71504.0,0.0014]
[1773603002608,0.04141029,71516.0,71503.0,0.0002]
[1773603003012,0.04141029,71516.0,71504.0,0.0014]
[1773603003210,0.06991344,71517.0,71504.0,0.0014]
[1773603003458,0.11132373,71517.0,71504.0,0.0014]
[1773603003645,0.04141029,71516.0,71504.0,0.0014]
[1773603006228,0.11132569,71515.0,71504.0,0.0014]
[1773603007367,0.11132569,71515.0,71503.0,0.0002]
[1773603007547,0.11132569,71515.0,71505.0,0.0014]
[1773603007753,0.04141029,71514.0,71506.0,0.0014]
[1773603007947,0.04141029,71514.0,71507.0,0.0014]
[1773603008349,0.06991735,71513.0,71503.0,0.0002]
[1773603008553,0.06991735,71513.0,71507.0,0.0014]
[1773603008992,0.06991735,71513.0,71506.0,0.0014]
[1773603010027,0.06991735,71513.0,71503.0,0.06992628]
[1773603010237,0.04141029,71512.0,71504.0,0.0014]
[1773603010474,0.06991931,71511.0,71504.0,0.0014]
[1773603012369,0.07129996,71531.0,71510.0,0.06992029]
[1773603012570,0.07012238,71529.0,71519.0,0.04110763]
[1773603012719,0.07012238,71529.0,71521.0,0.04110763]
[1773603012720,0.07012185,71529.0,71521.0,0.04110763]
[1773603013130,0.11153214,71529.0,71521.0,0.0014]
[1773603013498,0.11153214,71529.0,71511.0,0.04110763]
[1773603013694,0.11153214,71529.0,71512.0,0.0014]
[1773603013909,0.11153214,71529.0,71513.0,0.0014]
[1773603014114,0.07012185,71529.0,71513.0,0.0014]
[1773603014369,0.04141029,71528.0,71513.0,0.0014]
[1773603014704,0.06990367,71527.0,71514.0,0.0014]
[1773603015053,0.00022001,71520.0,71512.0,0.06991833]
[1773603015267,0.00022001,71520.0,71515.0,0.0014]
[1773603015700,0.00022001,71520.0,71516.0,0.0014]
[1773603015899,0.00022001,71520.0,71512.0,0.06991833]
[1773603016113,0.00022001,71520.0,71510.0,0.06992029]
[1773603016389,0.06990367,71527.0,71513.0,0.0014]
[1773603016934,0.00022001,71529.0,71514.0,0.06991638]
[1773603017272,0.07012191,71529.0,71514.0,0.06991638]
[1773603019328,0.0450144,71528.0,71514.0,0.06991638]
[1773603020819,0.0450144,71528.0,71513.0,0.0014]
[1773603021364,0.06990367,71527.0,71512.0,0.0014]
[1773603021548,0.04141029,71526.0,71512.0,0.0014]
[1773603021751,0.04141029,71526.0,71505.0,0.06992518]
[1773603021919,0.04141029,71526.0,71508.0,0.0014]
[1773603022549,0.04141029,71526.0,71505.0,0.06992518]
[1773603022754,0.04141029,71526.0,71509.0,0.0014]
[1773603023213,0.04123256,71526.0,71510.0,0.0014]
[1773603023640,0.04505521,71524.0,71505.0,0.06992518]
[1773603023819,0.04505521,71524.0,71511.0,0.0014]
[1773603024180,0.04505521,71524.0,71512.0,0.0014]
[1773603024384,0.04513995,71524.0,71512.0,0.0014]
[1773603024580,0.04513995,71524.0,71505.0,0.06992518]
[1773603024782,0.04513995,71524.0,71512.0,0.0014]
[1773603026510,0.06990758,71523.0,71512.0,0.0014]
[1773603029064,0.06990758,71523.0,71513.0,0.06991735]
[1773603031769,0.11514055,71523.0,71513.0,0.06991735]
[1773603032245,0.04523297,71522.0,71513.0,0.06991735]
[1773603034573,0.06990953,71521.0,71513.0,0.06991735]
[1773603036012,0.1151425,71521.0,71513.0,0.06991735]
[1773603036840,0.1151425,71521.0,71513.0,0.07011735]
[1773603037529,0.11478702,71521.0,71513.0,0.07011735]
[1773603042928,0.06990898,71522.0,71513.0,0.07011735]
[1773603046398,0.06990898,71522.0,71510.0,0.12996203]
[1773603046595,0.06990898,71522.0,71512.0,0.06991735]
[1773603046808,0.11514195,71522.0,71512.0,0.06991735]
[1773603050812,0.06990898,71522.0,71512.0,0.06991735]
[1773603051002,0.04523297,71521.0,71512.0,0.06991735]
[1773603052913,0.06991051,71520.0,71511.0,0.0639417]
[1773603053124,0.04176758,71519.0,71511.0,0.0639417]
[1773603053607,0.04176758,71519.0,71512.0,0.0014]
[1773603054508,0.04176758,71519.0,71511.0,0.0639417]
[1773603054716,0.04176758,71519.0,71512.0,0.0014]
[1773603055160,0.06991246,71518.0,71512.0,0.0014]
[1773603055597,0.06991246,71518.0,71510.0,0.06991931]
[1773603055819,0.06991246,71518.0,71512.0,0.0014]
[1773603056040,0.06991246,71518.0,71510.0,0.06991931]
[1773603056261,0.04176758,71517.0,71513.0,0.0014]
[1773603056541,0.04176758,71517.0,71510.0,0.06991931]
[1773603056749,0.04176758,71517.0,71513.0,0.0014]
[1773603057159,0.11168112,71517.0,71513.0,0.0014]
[1773603057480,0.11168112,71517.0,71506.0,0.0699242]
[1773603057730,0.11168112,71517.0,71508.0,0.0014]
[1773603058146,0.11168112,71517.0,71509.0,0.0014]
[1773603058546,0.11168112,71517.0,71506.0,0.0699242]
[1773603058727,0.11168112,71517.0,71510.0,0.0014]
[1773603059069,0.11168112,71517.0,71506.0,0.0699242]
[1773603059226,0.11168112,71517.0,71511.0,0.0014]
[1773603059546,0.11168112,71517.0,71506.0,0.0699242]
[1773603059749,0.11168112,71517.0,71512.0,0.0014]
[1773603059948,0.11168112,71517.0,71505.0,0.0701242]
[1773603059949,0.04176758,71516.0,71508.0,0.0014]
[1773603060529,0.04176758,71516.0,71509.0,0.0014]
[1773603060938,0.04176758,71516.0,71505.0,0.07012482]
[1773603061135,0.0699154,71515.0,71508.0,0.07132146]
[1773603061904,0.0699154,71515.0,71508.0,0.0014]
[1773603062751,0.0699154,71515.0,71507.0,0.07005212]
[1773603062954,0.0699154,71515.0,71508.0,0.0014]
[1773603063337,0.06991149,71519.0,71508.0,0.0014]
[1773603063754,0.06991149,71519.0,71507.0,0.000129]
[1773603063970,0.06991149,71519.0,71508.0,0.0014]
[1773603064172,0.11167907,71519.0,71508.0,0.0014]
[1773603064894,0.04176758,71518.0,71508.0,0.0014]
[1773603065297,0.06991344,71517.0,71507.0,0.000129]
[1773603065509,0.04176758,71516.0,71508.0,0.0014]
[1773603066271,0.04176758,71516.0,71507.0,0.000129]
[1773603066497,0.04176758,71516.0,71508.0,0.0014]
[1773603066925,0.0415898,71516.0,71508.0,0.0014]
[1773603067121,0.0415898,71516.0,71508.0,0.0016]
[1773603067328,0.0699154,71515.0,71508.0,0.0002]
[1773603067525,0.0699154,71515.0,71509.0,0.0014]
[1773603068352,0.0699154,71515.0,71508.0,0.07012213]
[1773603068565,0.0699154,71515.0,71509.0,0.0014]
[1773603070189,0.0699154,71515.0,71508.0,0.0002]
[1773603070414,0.0699154,71515.0,71509.0,0.0014]
[1773603071687,0.06991344,71517.0,71509.0,0.0014]
[1773603074344,0.04176758,71516.0,71508.0,0.0002]
[1773603076274,0.0699154,71515.0,71508.0,0.0002]
[1773603077565,0.11168298,71515.0,71508.0,0.0002]
[1773603082086,0.11168298,71515.0,71508.0,0.0016]
[1773603083085,0.1097611,71515.0,71508.0,0.0016]
[1773603084776,0.0699154,71515.0,71508.0,0.0016]
[1773603088166,0.1113775,71515.0,71508.0,0.0016]
[1773603088293,0.0699154,71515.0,71508.0,0.0016]
[1773603099415,0.11068738,71515.0,71508.0,0.0016]
[1773603102537,0.0699154,71515.0,71508.0,0.0016]
[1773603104042,0.0699154,71515.0,71508.0,0.07152216]
[1773603105626,0.0699154,71515.0,71508.0,0.0016]
[1773603111465,0.00022001,71519.0,71508.0,0.0016]
[1773603111726,0.07021324,71524.0,71509.0,0.12856031]
[1773603114890,0.07021324,71524.0,71510.0,0.05862739]
[1773603115764,0.04446227,71523.0,71510.0,0.05862739]
[1773603116376,0.06990855,71522.0,71511.0,0.06991931]
[1773603116594,0.11437082,71522.0,71511.0,0.06991931]
[1773603117583,0.04440283,71521.0,71511.0,0.06991931]
[1773603119153,0.06991017,71521.0,71510.0,0.06991931]
[1773603119364,0.06991017,71521.0,71510.0,0.1285467]
[1773603122021,0.06991017,71521.0,71502.0,0.0002]
[1773603122022,0.05862739,71520.0,71499.0,0.0002]
[1773603122265,0.05862739,71510.0,71497.0,0.06993209]
[1773603122467,0.05003768,71519.0,71497.0,0.06993209]
[1773603122468,0.04338593,71512.0,71499.0,0.0014]
[1773603122824,0.04338593,71512.0,71497.0,0.06993209]
[1773603123032,0.04338593,71512.0,71498.0,0.0014]
[1773603123426,0.04338593,71512.0,71497.0,0.06993209]
[1773603123885,0.06991931,71511.0,71497.0,0.06993209]
[1773603124092,0.04378075,71510.0,71497.0,0.06993209]
[1773603124265,0.04378075,71510.0,71498.0,0.0014]
[1773603124470,0.04378075,71510.0,71500.0,0.0002]
[1773603126085,0.04319127,71508.0,71500.0,0.0002]
[1773603126823,0.04319127,71508.0,71499.0,0.0014]
[1773603126824,0.04319127,71508.0,71498.0,0.0014]
[1773603127219,0.04319127,71508.0,71497.0,0.06993209]
[1773603127391,0.04319127,71508.0,71498.0,0.0014]
[1773603128215,0.06992322,71507.0,71497.0,0.06993209]
[1773603128452,0.06992322,71507.0,71498.0,0.0014]
[1773603128736,0.06992322,71507.0,71497.0,0.06993209]
[1773603128953,0.06992322,71507.0,71498.0,0.0014]
[1773603129854,0.06992322,71507.0,71497.0,0.06993209]
[1773603130080,0.06992322,71507.0,71498.0,0.0014]
[1773603130299,0.06992322,71507.0,71497.0,0.06993209]
[1773603130522,0.06992322,71507.0,71498.0,0.0014]
[1773603131320,0.06992237,71508.0,71498.0,0.0016]
[1773603132470,0.06992237,71508.0,71499.0,0.06993104]
[1773603134778,0.11805641,71508.0,71499.0,0.06993104]
[1773603137565,0.06992237,71508.0,71499.0,0.06993104]
[1773603140550,0.06992237,71508.0,71499.0,0.07133104]
[1773603145362,0.06992237,71508.0,71499.0,0.07153104]
[1773603145837,0.07014238,71508.0,71499.0,0.07153104]
[1773603153830,0.06992237,71508.0,71499.0,0.07153104]
[1773603154401,0.07014238,71508.0,71499.0,0.07153104]
[1773603158833,0.07014238,71508.0,71500.0,0.0014]
[1773603161003,0.07014238,71508.0,71501.0,0.06992909]
[1773603179032,0.0014,71514.0,71501.0,0.06992909]
[1773603179232,0.00030475,71524.0,71504.0,0.05865763]
[1773603179433,0.00030475,71524.0,71501.0,0.06992909]
[1773603179434,0.00030475,71524.0,71510.0,0.05865763]
[1773603179635,0.00030475,71524.0,71511.0,0.0014]
[1773603179963,0.07021151,71524.0,71511.0,0.0014]
[1773603180416,0.00022001,71516.0,71511.0,0.0014]
[1773603180617,0.07021151,71524.0,71511.0,0.0014]
[1773603180822,0.07021151,71524.0,71512.0,0.06991833]
[1773603189182,0.00030475,71524.0,71512.0,0.06991833]
[1773603189387,0.07021146,71524.0,71512.0,0.06991833]